bitfinex/quotes_BTCUSD_20250412
["timestamp","ask_amount","ask_price","bid_price","bid_amount"]
[1744424692818,0.0008438,83179.0,83176.0,0.012022]
[1744424693842,0.0008438,83179.0,83177.0,0.240451]
[1744424695009,0.0008438,83179.0,83176.0,0.012022]
[1744424695226,0.0008438,83179.0,83176.0,0.252473]
[1744424696852,0.0008438,83179.0,83177.0,0.240449]
[1744424697640,0.0008438,83179.0,83176.0,0.252473]
[1744424697979,0.0008438,83179.0,83177.0,0.240449]
[1744424698628,0.0008438,83179.0,83178.0,0.12324591]
[1744424699431,0.0008438,83179.0,83178.0,0.26528591]
[1744424699639,0.0008438,83179.0,83178.0,0.26288154]
[1744424702202,0.0008438,83179.0,83178.0,0.12084154]
[1744424702427,0.0008438,83179.0,83177.0,0.240449]
[1744424702649,0.0008438,83179.0,83177.0,0.36129054]
[1744424702865,0.01036259,83179.0,83177.0,0.36129054]
[1744424703086,0.00951327,83178.0,83177.0,0.36129054]
[1744424710934,0.0008438,83179.0,83177.0,0.36129054]
[1744424712240,0.00803731,83178.0,83177.0,0.36129054]
[1744424716977,0.0008438,83179.0,83177.0,0.36129054]
[1744424717401,0.00801651,83178.0,83177.0,0.36129054]
[1744424717827,0.0008438,83179.0,83177.0,0.36129054]
[1744424718320,0.00801651,83178.0,83177.0,0.36129054]
[1744424718526,0.00801651,83178.0,83177.0,0.41039054]
[1744424718739,0.0008438,83179.0,83177.0,0.41039054]
[1744424719190,0.0008438,83179.0,83178.0,0.12084154]
[1744424721312,0.0008438,83179.0,83178.0,0.16944582]
[1744424722618,0.0008438,83179.0,83178.0,0.16704154]
[1744424724030,0.0008438,83179.0,83178.0,0.1694456]
[1744424732885,0.0008438,83179.0,83178.0,0.16704154]
[1744424735833,0.0008438,83179.0,83178.0,0.16944559]
[1744424736037,0.0008438,83179.0,83178.0,0.16704154]
[1744424736229,0.0008438,83179.0,83178.0,0.16944557]
[1744424737091,0.0008438,83179.0,83178.0,0.16704154]
[1744424738864,0.0008438,83179.0,83178.0,0.12084154]
[1744424739266,0.03979689,83179.0,83174.0,0.25248]
[1744424739543,0.012022,83178.0,83175.0,0.13286354]
[1744424739739,0.252475,83176.0,83171.0,0.012023]
[1744424739940,0.252475,83176.0,83172.0,0.13286454]
[1744424740151,0.00695659,83175.0,83172.0,0.13286454]
[1744424740545,0.00695659,83175.0,83172.0,0.37332754]
[1744424740924,0.00695659,83175.0,83174.0,0.240459]
[1744424741125,0.0128658,83179.0,83174.0,0.240459]
[1744424741126,0.012022,83178.0,83174.0,0.252481]
[1744424741326,0.00695659,83175.0,83174.0,0.252481]
[1744424741532,0.012022,83177.0,83174.0,0.252481]
[1744424741791,0.0069327,83175.0,83174.0,0.252481]
[1744424742093,0.00693401,83175.0,83174.0,0.252481]
[1744424742233,0.012022,83177.0,83174.0,0.252481]
[1744424742437,0.00693471,83176.0,83174.0,0.012022]
[1744424743981,0.00693471,83176.0,83168.0,0.153943]
[1744424743982,0.012023,83171.0,83167.0,0.012023]
[1744424744194,0.012024,83165.0,83162.0,1.23728]
[1744424744401,0.012024,83165.0,83160.0,0.252522]
[1744424744402,0.0493,83164.0,83160.0,0.252522]
[1744424744603,0.21622589,83164.0,83160.0,0.252522]
[1744424745120,0.22824989,83164.0,83161.0,0.012024]
[1744424746343,0.012024,83163.0,83160.0,0.252522]
[1744424746631,0.182024,83163.0,83160.0,0.252522]
[1744424746871,0.0069245,83162.0,83160.0,0.252522]
[1744424747306,0.061324,83164.0,83161.0,0.012024]
[1744424747712,0.0069252,83163.0,83161.0,0.012024]
[1744424750385,0.0069252,83163.0,83161.0,0.252518]
[1744424750788,0.0493,83164.0,83161.0,0.252518]
[1744424751372,0.00692293,83163.0,83161.0,0.252518]
[1744424751799,0.23607334,83174.0,83170.0,0.012023]
[1744424752206,0.00679507,83173.0,83171.0,0.252491]
[1744424752520,0.012022,83175.0,83171.0,0.252491]
[1744424752751,0.00679924,83172.0,83171.0,0.252491]
[1744424752970,0.012022,83175.0,83171.0,0.252491]
[1744424753170,0.00679993,83172.0,83171.0,0.252491]
[1744424753350,0.012022,83175.0,83172.0,0.012023]
[1744424755892,0.012022,83174.0,83171.0,0.252491]
[1744424756426,0.012022,83174.0,83171.0,0.012023]
[1744424758643,0.252483,83174.0,83171.0,0.012023]
[1744424759266,0.012023,83173.0,83170.0,0.012023]
[1744424759726,0.172023,83173.0,83170.0,0.012023]
[1744424759980,0.012023,83173.0,83170.0,0.012023]
[1744424760734,0.252489,83172.0,83168.0,0.012023]
[1744424760935,0.022023,83172.0,83169.0,0.012023]
[1744424762798,0.00680062,83171.0,83169.0,0.012023]
[1744424763013,0.02680062,83171.0,83169.0,0.012023]
[1744424765073,0.00680062,83171.0,83169.0,0.012023]
[1744424766718,0.17680062,83171.0,83169.0,0.012023]
[1744424769539,0.18882362,83171.0,83168.0,0.252497]
[1744424769759,0.012023,83170.0,83167.0,0.012023]
[1744424769963,0.012023,83168.0,83165.0,0.012024]
[1744424770165,0.012023,83167.0,83165.0,0.12084154]
[1744424770373,0.17881677,83167.0,83165.0,0.12084154]
[1744424770601,0.240482,83166.0,83165.0,0.12084154]
[1744424770801,0.400482,83166.0,83165.0,0.12084154]
[1744424771014,0.16678408,83166.0,83165.0,0.12084154]
[1744424773876,0.40726608,83166.0,83165.0,0.12084154]
[1744424774089,0.16678408,83166.0,83165.0,0.12084154]
[1744424783320,0.00678408,83166.0,83165.0,0.12084154]
[1744424783526,0.012022,83174.0,83168.0,0.012023]
[1744424783761,0.0008438,83179.0,83178.0,0.240448]
[1744424783988,0.0208438,83179.0,83176.0,0.012022]
[1744424784233,0.012022,83178.0,83177.0,0.00751194]
[1744424784515,0.02,83178.0,83177.0,0.00751194]
[1744424787610,0.02,83178.0,83177.0,0.24796294]
[1744424790646,0.02,83178.0,83177.0,0.00751194]
[1744424792762,0.02580034,83178.0,83177.0,0.00751194]
[1744424799622,0.012023,83173.0,83170.0,0.00751194]
[1744424799826,0.240465,83172.0,83170.0,0.00751194]
[1744424800027,0.42621986,83172.0,83170.0,0.00751194]
[1744424800232,0.42621986,83172.0,83167.0,0.012023]
[1744424800233,0.42621986,83172.0,83171.0,0.00751194]
[1744424800572,0.18575486,83172.0,83171.0,0.00751194]
[1744424801196,0.42621986,83172.0,83171.0,0.00751194]
[1744424803887,0.18575486,83172.0,83171.0,0.00751194]
[1744424804092,0.00575486,83172.0,83171.0,0.00751194]
[1744424804294,0.012022,83174.0,83171.0,0.00751194]
[1744424804491,0.00574331,83173.0,83171.0,0.00751194]
[1744424804737,0.15574331,83173.0,83172.0,0.00751194]
[1744424806410,0.00574331,83173.0,83172.0,0.00751194]
[1744424808306,0.012022,83175.0,83172.0,0.00751194]
[1744424808502,0.00480247,83174.0,83172.0,0.00751194]
[1744424808701,0.18480247,83174.0,83173.0,0.00751194]
[1744424817362,0.42526147,83174.0,83173.0,0.00751194]
[1744424817563,0.42526147,83174.0,83172.0,1.0]
[1744424819675,0.18480247,83174.0,83172.0,1.0]
[1744424822077,0.00480247,83174.0,83172.0,1.0]
[1744424822338,0.18480247,83174.0,83172.0,1.0]
[1744424822542,0.18,83174.0,83172.0,1.0]
[1744424822745,0.00538293,83173.0,83172.0,1.0]
[1744424822951,0.18538293,83173.0,83172.0,1.0]
[1744424826048,0.10538293,83173.0,83172.0,1.0]
[1744424827386,0.10538293,83173.0,83172.0,1.00751234]
[1744424828777,0.00538293,83173.0,83172.0,1.00751234]
[1744424829007,0.012022,83175.0,83172.0,1.00751234]
[1744424829212,0.25248,83175.0,83172.0,1.00751234]
[1744424829412,0.00537613,83174.0,83172.0,1.00751234]
[1744424829570,0.18537613,83174.0,83173.0,0.00751234]
[1744424837771,0.23507613,83174.0,83173.0,0.00751234]
[1744424838348,0.240462,83173.0,83172.0,1.0]
[1744424838551,0.455762,83173.0,83172.0,1.0]
[1744424838699,0.74690444,83173.0,83172.0,1.0]
[1744424839081,0.78061212,83173.0,83172.0,1.0]
[1744424840467,0.74690444,83173.0,83172.0,1.0]
[1744424843917,0.86774598,83173.0,83172.0,1.0]
[1744424846764,1.22228683,83173.0,83172.0,1.0]
[1744424847531,1.36392683,83173.0,83172.0,1.0]
[1744424853122,1.34938598,83173.0,83172.0,1.0]
[1744424866423,1.38302136,83173.0,83172.0,1.0]
[1744424868839,1.38294136,83173.0,83172.0,1.0]
[1744424869724,1.25592221,83173.0,83172.0,1.0]
[1744424869937,1.39748221,83173.0,83172.0,1.0]
[1744424887654,1.28794136,83173.0,83172.0,1.0]
[1744424887938,1.02553982,83173.0,83172.0,1.0]
[1744424889155,0.99190444,83173.0,83172.0,1.0]
[1744424902116,0.65190444,83173.0,83172.0,1.0]
[1744424902693,0.4158311,83173.0,83172.0,1.0485]
[1744424902895,0.4158311,83173.0,83172.0,1.0958]
[1744424905786,0.0053691,83173.0,83172.0,1.0958]
[1744424906199,0.012022,83177.0,83174.0,0.0484]
[1744424906400,0.442473,83177.0,83175.0,0.0476]
[1744424906607,0.0051854,83176.0,83175.0,0.0476]
[1744424906778,0.1751854,83176.0,83175.0,0.0476]
[1744424907207,0.1751854,83176.0,83175.0,0.05269037]
[1744424908205,0.1751854,83176.0,83175.0,0.0602025]
[1744424908889,0.1751854,83176.0,83175.0,0.05269037]
[1744424913163,0.1751854,83176.0,83175.0,0.0476]
[1744424915546,0.1751854,83176.0,83175.0,0.05269037]
[1744424921306,0.1751854,83176.0,83175.0,0.0476]
[1744424924865,0.1751854,83176.0,83175.0,0.05269037]
[1744424928613,0.17,83176.0,83175.0,0.0602025]
[1744424934155,0.17,83176.0,83175.0,0.05511213]
[1744424936115,0.17,83176.0,83175.0,0.05446203]
[1744424937226,0.17,83176.0,83175.0,0.17530357]
[1744424937558,0.17,83176.0,83175.0,0.41575957]
[1744424940953,0.17,83176.0,83175.0,0.00751213]
[1744424941664,0.17,83176.0,83172.0,1.0]
[1744424941665,0.252478,83175.0,83172.0,1.0]
[1744424941890,0.240462,83173.0,83172.0,1.0]
[1744424942331,0.420462,83173.0,83172.0,1.0]
[1744424943791,0.18,83173.0,83172.0,1.0]
[1744424945064,0.18,83173.0,83172.0,1.00751189]
[1744424948533,0.25248,83175.0,83172.0,1.00751189]
[1744424948731,0.40248,83175.0,83172.0,1.00751189]
[1744424948969,0.40248,83175.0,83173.0,0.00751189]
[1744424949146,0.162022,83175.0,83173.0,0.00751189]
[1744424949284,0.162022,83175.0,83174.0,0.00751189]
[1744424952041,0.15,83175.0,83174.0,0.00751189]
[1744424959114,0.245,83175.0,83174.0,0.00751189]
[1744424961957,0.240459,83174.0,83172.0,1.0]
[1744424962192,0.410459,83174.0,83172.0,1.0]
[1744424970894,0.53130054,83174.0,83172.0,1.0]
[1744424972977,0.410459,83174.0,83172.0,1.0]
[1744424979723,0.410459,83174.0,83172.0,1.0495]
[1744424986026,0.410459,83174.0,83172.0,1.0]
[1744425045159,0.17,83174.0,83172.0,1.0]
[1744425045366,0.17,83174.0,83173.0,0.240462]
[1744425045559,0.17,83174.0,83173.0,0.286862]
[1744425052427,0.17672239,83174.0,83173.0,0.286862]
[1744425058325,0.17672239,83174.0,83173.0,0.0464]
[1744425058679,0.17,83174.0,83173.0,0.0464]
[1744425059088,0.17672552,83174.0,83173.0,0.0464]
[1744425059288,0.17672552,83174.0,83172.0,1.240463]
[1744425059749,0.17672552,83174.0,83172.0,1.0]
[1744425059987,0.41718652,83174.0,83172.0,1.0]
[1744425072682,0.410461,83174.0,83172.0,1.0]
[1744425074580,0.21684154,83173.0,83172.0,1.0]
[1744425074791,0.62291488,83173.0,83172.0,1.0]
[1744425074936,0.63515577,83173.0,83172.0,1.0]
[1744425075977,0.63515577,83173.0,83172.0,1e-06]
[1744425075978,0.98969662,83173.0,83172.0,1e-06]
[1744425080504,1.13049662,83173.0,83172.0,1e-06]
[1744425083449,1.11599577,83173.0,83172.0,1e-06]
[1744425096834,1.1496008,83173.0,83172.0,1e-06]
[1744425097721,1.16414165,83173.0,83172.0,1e-06]
[1744425097926,1.28487013,83173.0,83172.0,1e-06]
[1744425098854,1.16414165,83173.0,83172.0,1e-06]
[1744425099262,1.16406165,83173.0,83172.0,1e-06]
[1744425099650,1.02330165,83173.0,83172.0,1e-06]
[1744425099877,1.16406165,83173.0,83172.0,1e-06]
[1744425105906,1.26406165,83173.0,83172.0,1e-06]
[1744425106502,1.38479013,83173.0,83172.0,1e-06]
[1744425110210,1.38579013,83173.0,83172.0,1e-06]
[1744425114600,0.012027,83143.0,83140.0,0.0004219]
[1744425114814,0.192027,83143.0,83140.0,0.00089217]
[1744425115361,0.240552,83142.0,83140.0,0.00089217]
[1744425115579,0.420552,83142.0,83140.0,0.00089217]
[1744425117563,0.43277631,83142.0,83140.0,0.00089217]
[1744425120513,0.66884865,83142.0,83140.0,0.00089217]
[1744425121272,0.65662434,83142.0,83141.0,0.0486]
[1744425131303,0.6790629,83142.0,83141.0,0.0486]
[1744425131867,0.6790629,83142.0,83140.0,0.00089217]
[1744425132332,0.02243856,83141.0,83140.0,0.00089217]
[1744425132699,0.21243856,83141.0,83140.0,0.00089217]
[1744425138892,0.12243856,83141.0,83140.0,0.00089217]
[1744425151351,0.14491739,83141.0,83140.0,0.00089217]
[1744425158613,0.50183127,83141.0,83140.0,0.00089217]
[1744425159243,0.38098973,83141.0,83140.0,0.00089217]
[1744425168217,0.3585109,83141.0,83140.0,0.00089217]
[1744425170412,0.12243856,83141.0,83140.0,0.00089217]
[1744425184619,0.12243856,83141.0,83140.0,0.04729217]
[1744425185568,0.12243856,83141.0,83140.0,0.28785017]
[1744425186258,0.12243856,83141.0,83140.0,0.29536522]
[1744425186952,0.12243856,83141.0,83140.0,0.05480722]
[1744425187884,0.12243856,83141.0,83140.0,0.06681765]
[1744425190006,0.12243856,83141.0,83140.0,0.30737565]
[1744425190211,0.12243856,83141.0,83140.0,0.2998606]
[1744425190568,0.12243856,83141.0,83140.0,0.04729217]
[1744425190974,0.12243856,83141.0,83140.0,0.0548069]
[1744425192428,0.12243856,83141.0,83140.0,0.04729217]
[1744425193334,0.12243856,83141.0,83140.0,0.05480693]
[1744425194319,0.12243856,83141.0,83140.0,0.066866]
[1744425201231,0.12243856,83141.0,83140.0,0.05480693]
[1744425203143,0.12243856,83141.0,83140.0,0.05990063]
[1744425207798,0.12243856,83141.0,83140.0,0.01350063]
[1744425212380,0.12243856,83141.0,83140.0,0.00840693]
[1744425247629,0.12243856,83141.0,83140.0,0.00089217]
[1744425250399,0.240552,83142.0,83140.0,0.00089217]
[1744425253722,0.0489,83141.0,83140.0,0.00089217]
[1744425262563,0.2289,83141.0,83140.0,0.00089217]
[1744425284202,0.5689,83141.0,83140.0,0.00089217]
[1744425301334,0.18,83141.0,83140.0,0.00089217]
[1744425316164,0.18,83141.0,83140.0,0.05029217]
[1744425317710,0.18,83141.0,83140.0,0.29085017]
[1744425319719,0.18,83141.0,83140.0,0.05029217]
[1744425328661,0.18,83141.0,83140.0,0.00089217]
[1744425331340,0.19549256,83141.0,83140.0,0.00089217]
[1744425336744,0.19549256,83141.0,83140.0,0.24145017]
[1744425337927,0.43604756,83141.0,83140.0,0.00089217]
[1744425339688,0.19549256,83141.0,83140.0,0.00089217]
[1744425364684,0.19549256,83141.0,83140.0,0.36229171]
[1744425365061,0.18,83141.0,83140.0,0.36229171]
[1744425368879,0.18,83141.0,83140.0,0.41049171]
[1744425373293,0.18,83141.0,83140.0,0.36229171]
[1744425373642,0.18,83141.0,83140.0,0.00089217]
[1744425374240,0.19498994,83141.0,83140.0,0.00089217]
[1744425377942,0.24418994,83141.0,83140.0,0.00089217]
[1744425390181,0.43554494,83141.0,83140.0,0.00089217]
[1744425390382,0.19498994,83141.0,83140.0,0.00089217]
[1744425390793,0.19498994,83141.0,83140.0,0.12173371]
[1744425391632,0.18,83141.0,83140.0,0.12173371]
[1744425391831,0.19579751,83141.0,83140.0,0.12173371]
[1744425396320,0.19579751,83141.0,83140.0,0.12924882]
[1744425412701,0.19579751,83141.0,83140.0,0.12173371]
[1744425419306,0.19579751,83141.0,83140.0,0.00089217]
[1744425423075,0.18,83141.0,83140.0,0.00089217]
[1744425423450,0.19569384,83141.0,83140.0,0.00089217]
[1744425424259,0.01569384,83141.0,83140.0,0.12413918]
[1744425424456,0.012026,83153.0,83145.0,0.012027]
[1744425424665,0.192026,83153.0,83148.0,0.240532]
[1744425424826,0.192026,83153.0,83149.0,0.00751462]
[1744425425027,0.012026,83152.0,83149.0,0.00751462]
[1744425425276,0.022026,83152.0,83149.0,0.00751462]
[1744425425477,0.012026,83151.0,83148.0,0.240532]
[1744425428971,0.012026,83150.0,83146.0,0.24054]
[1744425429163,0.022026,83150.0,83146.0,0.252567]
[1744425429997,0.01,83150.0,83147.0,0.240534]
[1744425430411,0.012026,83152.0,83148.0,0.240532]
[1744425430617,0.012026,83151.0,83148.0,0.240532]
[1744425432243,0.01568881,83150.0,83148.0,0.240532]
[1744425432662,0.012026,83151.0,83148.0,0.240532]
[1744425432859,0.01572906,83150.0,83148.0,0.240532]
[1744425436770,0.012026,83152.0,83148.0,0.240532]
[1744425436990,0.012026,83152.0,83149.0,0.00751454]
[1744425437457,0.012026,83152.0,83150.0,0.00751454]
[1744425437677,0.252548,83153.0,83150.0,0.00751454]
[1744425438109,0.252548,83153.0,83151.0,0.00751454]
[1744425438547,0.252548,83153.0,83149.0,0.24053]
[1744425439018,0.012026,83153.0,83150.0,0.240527]
[1744425439233,0.252506,83166.0,83160.0,0.240499]
[1744425439477,0.1,83162.0,83160.0,0.240499]
[1744425439688,0.1,83162.0,83157.0,0.240507]
[1744425439887,0.1,83162.0,83161.0,0.00751387]
[1744425440481,0.1,83162.0,83159.0,0.2405]
[1744425441132,0.1,83162.0,83160.0,0.00751378]
[1744425441381,0.06850718,83170.0,83167.0,0.240479]
[1744425441578,0.18850718,83170.0,83165.0,0.240483]
[1744425441783,0.17648418,83170.0,83167.0,0.240479]
[1744425442201,0.17648418,83170.0,83168.0,0.00751326]
[1744425442635,0.18850718,83170.0,83167.0,0.240479]
[1744425442840,0.132023,83170.0,83167.0,0.240479]
[1744425443036,0.132023,83170.0,83168.0,0.00487936]
[1744425443237,0.12,83170.0,83169.0,0.00751288]
[1744425444278,0.1357285,83170.0,83169.0,0.00751288]
[1744425449080,0.12,83170.0,83169.0,0.00751288]
[1744425449717,0.12,83170.0,83169.0,0.01238607]
[1744425455709,0.12,83170.0,83169.0,0.00751288]
[1744425457365,0.13598224,83170.0,83169.0,0.00751288]
[1744425457616,0.12,83170.0,83169.0,0.00751288]
[1744425457810,0.13598224,83170.0,83169.0,0.240474]
[1744425458050,0.12,83170.0,83169.0,0.240474]
[1744425459447,0.13600044,83170.0,83169.0,0.240474]
[1744425462568,0.13600044,83170.0,83168.0,0.00751288]
[1744425462776,0.13600044,83170.0,83169.0,0.00751288]
[1744425463171,0.13600044,83170.0,83167.0,0.252502]
[1744425463318,0.13600044,83170.0,83167.0,0.37334354]
[1744425463519,0.13600044,83170.0,83168.0,0.00751288]
[1744425463742,0.13600044,83170.0,83169.0,0.00751288]
[1744425464156,0.13600044,83170.0,83168.0,0.00751288]
[1744425464755,0.13600044,83170.0,83167.0,0.37334354]
[1744425465441,0.13600044,83170.0,83167.0,0.13286454]
[1744425465694,0.13600044,83170.0,83168.0,0.00751258]
[1744425466463,0.13600044,83170.0,83169.0,0.00751258]
[1744425470169,0.12,83170.0,83169.0,0.00751258]
[1744425470377,0.13600901,83170.0,83169.0,0.00751258]
[1744425473989,0.12,83170.0,83169.0,0.00751258]
[1744425474193,0.13601027,83170.0,83169.0,0.00751258]
[1744425490290,0.01601027,83170.0,83169.0,0.00751258]
[1744425490488,0.0008438,83175.0,83171.0,0.012023]
[1744425490694,0.0008438,83175.0,83172.0,0.01953558]
[1744425490695,0.01547375,83174.0,83172.0,0.01953558]
[1744425491075,0.01547375,83174.0,83173.0,0.00751258]
[1744425493644,0.17,83174.0,83173.0,0.00751258]
[1744425493845,0.18524007,83174.0,83173.0,0.00751258]
[1744425494533,0.01524007,83174.0,83173.0,0.00751258]
[1744425494933,0.0008438,83175.0,83174.0,0.240459]
[1744425495383,0.0008438,83175.0,83174.0,0.24797158]
[1744425496018,0.0108438,83175.0,83174.0,0.24797158]
[1744425499759,0.0008438,83175.0,83174.0,0.24797158]
[1744425500114,0.0008438,83175.0,83174.0,0.25270404]
[1744425501082,0.0008438,83175.0,83174.0,0.24797158]
[1744425501498,0.0008438,83175.0,83174.0,0.36881312]
[1744425503134,0.0008438,83175.0,83174.0,0.37354488]
[1744425516214,0.0008438,83175.0,83174.0,0.36881312]
[1744425516574,0.1808438,83175.0,83174.0,0.24797158]
[1744425516924,0.19604963,83175.0,83174.0,0.24797158]
[1744425518867,0.19604963,83175.0,83174.0,0.2527049]
[1744425522645,0.01604963,83175.0,83174.0,0.2527049]
[1744425522938,0.0008438,83175.0,83174.0,0.2527049]
[1744425524815,0.01603752,83175.0,83174.0,0.2527049]
[1744425525123,0.0008438,83175.0,83174.0,0.2527049]
[1744425529187,0.0008438,83175.0,83174.0,0.37354644]
[1744425534708,0.0008438,83175.0,83174.0,0.46904644]
[1744425540742,0.0008438,83175.0,83174.0,0.46431312]
[1744425541746,0.0008438,83175.0,83174.0,0.60395312]
[1744425543248,0.0008438,83175.0,83174.0,0.55575312]
[1744425543445,0.0008438,83175.0,83174.0,0.50845312]
[1744425543653,0.0008438,83175.0,83174.0,0.36881312]
[1744425543834,0.02610443,83175.0,83174.0,0.00751258]
[1744425544235,0.01610443,83175.0,83174.0,0.00751258]
[1744425544449,0.16610443,83175.0,83174.0,0.00751258]
[1744425578783,0.01610443,83175.0,83174.0,0.00751258]
[1744425580852,0.01610443,83175.0,83174.0,0.12835412]
[1744425581290,0.0008438,83175.0,83174.0,0.12835412]
[1744425591547,0.1608438,83175.0,83174.0,0.12835412]
[1744425591773,0.0008438,83175.0,83174.0,0.12835412]
[1744425593630,0.0008438,83175.0,83174.0,0.00751258]
[1744425594106,0.1808438,83175.0,83174.0,0.00751258]
[1744425594522,0.19591595,83175.0,83174.0,0.00751258]
[1744425597360,0.01591595,83175.0,83174.0,0.00751258]
[1744425601890,0.19591595,83175.0,83174.0,0.00751258]
[1744425602128,0.20591595,83175.0,83174.0,0.00751258]
[1744425602358,0.19591595,83175.0,83174.0,0.00751258]
[1744425604141,0.01591595,83175.0,83174.0,0.00751258]
[1744425604785,0.0008438,83175.0,83174.0,0.00751258]
[1744425605003,0.01536133,83175.0,83174.0,0.00751258]
[1744425605242,0.0008438,83175.0,83174.0,0.00751258]
[1744425605729,0.01536133,83175.0,83174.0,0.00751258]
[1744425605929,0.0008438,83175.0,83174.0,0.00751258]
[1744425606131,0.01536133,83175.0,83174.0,0.00751258]
[1744425606267,0.0008438,83175.0,83174.0,0.00751258]
[1744425606466,0.01536133,83175.0,83174.0,0.00751258]
[1744425606711,0.0008438,83175.0,83174.0,0.00751258]
[1744425606906,0.01536133,83175.0,83174.0,0.00751258]
[1744425607063,0.0008438,83175.0,83174.0,0.00751258]
[1744425610131,0.0008438,83175.0,83174.0,0.17575412]
[1744425617057,0.0008438,83175.0,83174.0,0.1781585]
[1744425617783,0.0008438,83175.0,83174.0,0.5181585]
[1744425617958,0.0008438,83175.0,83174.0,0.51575412]
[1744425643695,0.0008438,83175.0,83174.0,0.65507412]
[1744425649086,0.0008438,83175.0,83174.0,0.60767412]
[1744425655715,0.2176438,83175.0,83174.0,0.14683258]
[1744425655934,0.0476438,83175.0,83174.0,0.13932]
[1744425656144,0.06499024,83175.0,83174.0,0.13932]
[1744425656345,0.0476438,83175.0,83174.0,0.13932]
[1744425666800,0.0008438,83175.0,83174.0,0.26016154]
[1744425667864,0.0008438,83175.0,83174.0,0.26767199]
[1744425668711,0.0008438,83175.0,83174.0,0.60767199]
[1744425669177,0.0008438,83175.0,83174.0,0.60016154]
[1744425669420,0.0008438,83175.0,83174.0,0.60488874]
[1744425670176,0.0008438,83175.0,83174.0,0.62693951]
[1744425670418,0.0008438,83175.0,83174.0,1.13203951]
[1744425671589,0.0008438,83179.0,83177.0,0.01454085]
[1744425671819,0.0008438,83179.0,83178.0,0.93538617]
[1744425672047,0.0008438,83179.0,83178.0,0.93298239]
[1744425672477,0.0008438,83179.0,83178.0,0.93770959]
[1744425672697,0.0008438,83179.0,83178.0,0.94521951]
[1744425677414,0.0008438,83179.0,83178.0,2.18233951]
[1744425684371,0.0008438,83179.0,83178.0,2.28233951]
[1744425686625,0.0008438,83188.0,83179.0,0.1]
[1744425687022,0.0008438,83188.0,83181.0,0.70128054]
[1744425687230,0.0008438,83188.0,83181.0,0.72333131]
[1744425688535,0.0008438,83188.0,83181.0,0.72805851]
[1744425689385,0.0008438,83188.0,83181.0,1.13625851]
[1744425689523,0.0008438,83188.0,83181.0,1.22855851]
[1744425690156,8e-07,83182.0,83181.0,1.32955851]
[1744425691021,8e-07,83182.0,83181.0,1.40172851]
[1744425691300,8e-07,83182.0,83181.0,1.32955851]
[1744425692469,0.0004146,83185.0,83184.0,0.59497085]
[1744425692731,0.00055555,83185.0,83184.0,0.72332231]
[1744425693688,0.00055555,83185.0,83184.0,0.72804951]
[1744425695162,0.00055555,83185.0,83184.0,1.13624951]
[1744425697281,0.0008438,83188.0,83187.0,0.59496285]
[1744425697517,0.0008438,83188.0,83187.0,0.71580439]
[1744425697716,0.0008438,83188.0,83187.0,0.72331431]
[1744425698488,0.0008438,83188.0,83187.0,0.73696215]
[1744425701075,0.0008438,83188.0,83187.0,1.14516215]
[1744425723012,0.0008438,83188.0,83187.0,1.28416215]
[1744425723810,0.0451554,83195.0,83194.0,0.580401]
[1744425724089,0.0451554,83195.0,83194.0,0.70875246]
[1744425724697,0.0451554,83195.0,83194.0,0.71347966]
[1744425725262,0.002844,83209.0,83199.0,0.35454085]
[1744425725479,0.002844,83209.0,83199.0,0.47538239]
[1744425725936,0.002844,83209.0,83199.0,0.48289231]
[1744425726351,0.002844,83209.0,83199.0,0.48761951]
[1744425729370,0.002844,83209.0,83199.0,0.56080395]
[1744425729784,0.002844,83209.0,83199.0,0.60900395]
[1744425730419,0.002844,83209.0,83199.0,1.01720395]
[1744425732662,0.002844,83209.0,83199.0,1.01247675]
[1744425732862,0.002844,83209.0,83199.0,1.03178239]
[1744425737893,0.002844,83209.0,83205.0,0.59491085]
[1744425738132,0.002844,83209.0,83205.0,0.85475239]
[1744425740797,0.002844,83209.0,83205.0,0.86680054]
[1744425742125,0.002844,83209.0,83205.0,1.27500054]
[1744425746674,0.002844,83209.0,83205.0,2.51160054]
[1744425754874,0.002844,83209.0,83205.0,2.37260054]
[1744425755099,0.002844,83209.0,83205.0,2.51148054]
[1744425762220,0.002844,83209.0,83205.0,2.5189871]
[1744425764292,0.002844,83209.0,83205.0,2.51148054]
[1744425771686,0.0462438,83206.0,83205.0,2.51148054]
[1744425773119,0.0462438,83206.0,83205.0,2.49693969]
[1744425777431,0.0462438,83206.0,83205.0,2.08873969]
[1744425777655,0.0462438,83206.0,83205.0,1.94985969]
[1744425777875,0.0462438,83206.0,83205.0,2.08873969]
[1744425779116,0.0462438,83206.0,83205.0,2.08865969]
[1744425779315,0.0948438,83206.0,83205.0,2.08865969]
[1744425792513,0.0948438,83206.0,83205.0,0.85205969]
[1744425792799,0.0948438,83206.0,83205.0,0.71325969]
[1744425793004,0.0948438,83206.0,83205.0,0.85205969]
[1744425796865,0.0462438,83206.0,83205.0,0.85205969]
[1744425797961,0.0008438,83206.0,83205.0,0.85205969]
[1744425806570,0.0008438,83206.0,83205.0,0.94865969]
[1744425811015,0.0008438,83206.0,83205.0,0.96320054]
[1744425812363,0.0008438,83206.0,83205.0,0.86660054]
[1744425824804,0.0008438,83206.0,83205.0,0.86652054]
[1744425835976,0.0008438,83206.0,83205.0,0.71325969]
[1744425836170,0.0008438,83206.0,83205.0,0.85197969]
[1744425858160,0.0008438,83206.0,83205.0,0.71325969]
[1744425858405,0.0008438,83206.0,83205.0,0.85189969]
[1744425858993,0.0008438,83206.0,83205.0,0.51189969]
[1744425859190,0.0008438,83206.0,83205.0,0.25948154]
[1744425859784,0.0494,83205.0,83203.0,0.352018]
[1744425860064,0.0123801,83204.0,83203.0,0.352018]
[1744425861382,0.0123801,83204.0,83203.0,0.36371946]
[1744425861811,0.0494,83205.0,83204.0,0.240373]
[1744425862566,0.06175738,83205.0,83204.0,0.240373]
[1744425868776,0.012019,83199.0,83191.0,0.240408]
[1744425869003,0.012019,83196.0,83193.0,1.23668]
[1744425869199,0.012019,83201.0,83194.0,0.02391702]
[1744425869200,0.25241,83198.0,83194.0,0.02391702]
[1744425869433,0.25241,83198.0,83194.0,0.01202]
[1744425869673,0.286099,83195.0,83193.0,1.23668]
[1744425870073,0.01223497,83194.0,83192.0,0.13864]
[1744425870436,0.25263797,83194.0,83192.0,0.13864]
[1744425871096,0.41263797,83194.0,83192.0,0.13864]
[1744425871819,0.012021,83187.0,83183.0,0.01208545]